[Event "Chhattisgarh Masters GM 2022"]
[Site "Chhattisgarh"]
[Date "2022.09.19"]
[Round "1.16"]
[White "Singh, Arvinder Preet"]
[Black "Chakravarthi Reddy, M."]
[Result "0-1"]
[ECO "C11"]
[WhiteElo "2007"]
[BlackElo "2306"]
[Annotator "TA"]
[PlyCount "86"]
[EventDate "2022.09.19"]
[EventCountry "IND"]
[SourceTitle "playchess.com"]
[Source "ChessBase"]
[SourceQuality "1"]
[TimeControl "5400+30"]

{[%evp 15,86,0,4,-1,0,-22,16,-4,19,-20,-21,-67,-58,-116,-121,-230,-215,-229,-226,-227,-195,-200,-187,-332,-350,-360,-308,-651,-636,-1302,-596,-636,-635,-637,-604,-630,-641,-607,-640,-617,-626,-551,-480,-516,-174,-166,-102,-79,-89,-102,-20,-20,-8,0,43,-19,-14,-143,-167,-139,-118,-1000,-677,-1127,-1127,-1121,-1120,-1099,-1058,-1058,-1058,-1016,-1009]} 1. e4 {[%emt 0:00:14]} e6 {[%emt 0:00:58]} 2. d4 {[%emt 0:00:06]} d5 {[%emt 0:01:58]} 3. Nc3 {[%emt 0:00:19]} Nf6 {[%emt 0:00:03]} 4. e5 {[%emt 0:00:20]} Nfd7 {[%emt 0:00:03]} 5. f4 {[%emt 0:00:17]} c5 {[%emt 0:00:09]} 6. Nf3 {[%emt 0:00:07]} Nc6 {[%emt 0:00:03]} 7. Ne2 {[%emt 0:00:19]} Be7 {[%emt 0:00:10]} 8. c3 {[%emt 0:00:18]} O-O {[%emt 0:00:07]} 9. a3 {[%emt 0:12:00] C11: French: Classical System: 4 e5 and 4 Bg5 dxe4.} a5 {[%emt 0:00:17]} 10. g3 {[%emt 0:10:39] 10.h4 is setting a new trend.} f6 {[%emt 0:00:33]} 11. Bg2 {[%emt 0:07:06] The position is equal.} (11. Bh3 $5 {[%cal Rh3e6]}) 11... Qb6 {[%emt 0:10:36] [#]} 12. Bh3 $146 {[%emt 0:19:18]} ({Predecessor:} 12. exf6 Nxf6 13. O-O Bd7 14. Rb1 Rac8 15. Ne5 cxd4 16. Nxd7 Nxd7 17. cxd4 Bxa3 18. f5 exf5 19. Bxd5+ {0-1 (51) Pasti,A (2069)-Metzdorf,M (1878) Bad Blankenburg 2018}) 12... cxd4 {[%emt 0:10:38][%cal Rf6e5]} 13. cxd4 {[%emt 0:12:37]} (13. exf6 $1 $11 Nxf6 14. cxd4) 13... fxe5 $1 $15 {[%emt 0:05:01]} 14. Bxe6+ {[%emt 0:00:08]} (14. dxe5 $15 Nc5 15. Be3) 14... Kh8 $17 {[%emt 0:00:02] aiming for ...e4.} 15. Bxd5 {[%emt 0:01:24]} (15. O-O $17 {was necessary.}) 15... exd4 $1 $19 {[%emt 0:11:07]} 16. Qb3 {[%emt 0:09:32]} (16. Nfxd4 $2 Nxd4 17. Be3 (17. Qxd4 $2 Bc5 $19) (17. Nxd4 $2 Nf6 $19) 17... Nc2+ $1 {[%mdl 512]} 18. Qxc2 Qxe3 $19) 16... Qxb3 {[%emt 0:11:49]} 17. Bxb3 {[%emt 0:00:02]} Nc5 $1 {[%emt 0:00:29]} 18. Bc4 {[%emt 0:04:45]} Bg4 {[%emt 0:18:23]} ({And not} 18... Be6 19. Bxe6 Nxe6 20. O-O $15) 19. Ne5 {[%emt 0:13:19]} (19. O-O $142) 19... Nxe5 {[%emt 0:06:38]} 20. fxe5 {[%emt 0:00:03]} b5 {[%emt 0:02:28]} 21. Bd5 {[%emt 0:07:30]} (21. Bxb5 Nb3 22. Rb1) 21... Rad8 {[%emt 0:00:22]} 22. Ba2 {[%emt 0:00:36]} Bxe2 {[%emt 0:02:28]} (22... Nd3+ $142 23. Kd2 Bg5+ 24. Nf4 Nxf4 25. gxf4 Rxf4) 23. Kxe2 {[%emt 0:00:03]} d3+ {[%emt 0:00:08]} 24. Ke1 {[%emt 0:00:34]} d2+ {[%emt 0:00:57]} 25. Bxd2 {[%emt 0:00:08]} Nd3+ {[%emt 0:00:01]} 26. Kd1 {[%emt 0:00:57]} Rf2 {[%emt 0:11:00]} (26... Nxe5 27. Ke2 $17) 27. Bxa5 {[%emt 0:00:26]} Nxb2+ {[%emt 0:00:03]} 28. Ke1 {[%emt 0:00:02]} Nd3+ {[%emt 0:00:05]} 29. Kd1 {[%emt 0:00:02]} Bg5 {[%emt 0:03:06]} (29... Rd4 {( -> ...Bg5)} 30. Bc3 Rd8) 30. Bb1 {[%emt 0:02:19]} Rd5 {[%emt 0:03:26]} (30... Kg8 $19 31. Bxd3 (31. Ba2+ Kh8 $17) 31... Rxd3+ 32. Ke1 Rb2) 31. Bxd3 $17 {[%emt 0:00:00]} Rxd3+ {[%emt 0:00:01]} 32. Ke1 {[%emt 0:00:00] [#]} Rff3 {[%emt 0:00:56] Black is much more active. The white rooks are badly placed.} (32... Rb2 $1 $17 {Threatens to win with ...Kg8.} 33. Rf1 Re3+ 34. Kd1 h6) 33. Bb4 {[%emt 0:00:01]} Rde3+ {[%emt 0:00:09][%mdl 1024] Black has compensation.} 34. Kd1 {[%emt 0:00:16]} Rf2 {[%emt 0:01:02]} 35. Rc1 {[%emt 0:01:36]} ({White should play} 35. h4 $1 $14 Bd8 36. Rc1 (36. Bc5 Rd3+ 37. Ke1 Rc2 $15) 36... Rxe5 37. Rc8) 35... h5 $11 {[%emt 0:00:25]} 36. Rc8+ {[%emt 0:00:08]} (36. h4 $1 $11 {keeps the balance.} Bh6 37. e6) 36... Kh7 $17 {[%emt 0:00:03] Strongly threatening ...Rb3.} 37. h4 {[%emt 0:00:55] [#]} Bh6 {[%emt 0:00:04]} 38. Rc5 $2 {[%emt 0:00:33][%mdl 8192] Now White is beyond hope.} (38. e6 $17) 38... Ra2 {[%emt 0:01:31] Black is clearly winning.} 39. Rc3 {[%emt 0:00:30] Against Rd3+. And now Rxe3 would win.} Ra1+ {[%emt 0:00:24]} 40. Rc1 {[%emt 0:00:22]} Rxc1+ {[%emt 0:00:03][%mdl 64] Deflection} 41. Kxc1 {[%emt 0:00:01]} Re1+ $1 {[%emt 0:00:01][%mdl 64] Discovered Attack (Double check), Double Attack} 42. Kc2 {[%emt 0:00:29]} Rxh1 {[%emt 0:00:03]} 43. e6 {[%emt 0:00:20]} Kg6 {[%emt 0:00:12] Weighted Error Value: White=0.84/Black=0.50} 0-1

[Event "Chhattisgarh Masters GM 2022"]
[Site "Chhattisgarh"]
[Date "2022.09.19"]
[Round "1.17"]
[White "Liyanage, Ranindu Dilshan"]
[Black "Pattnayak Nilsu"]
[Result "1-0"]
[ECO "D00"]
[WhiteElo "2306"]
[BlackElo "2002"]
[Annotator "TA"]
[PlyCount "53"]
[EventDate "2022.09.19"]
[EventCountry "IND"]
[SourceTitle "playchess.com"]
[Source "ChessBase"]
[SourceQuality "1"]
[TimeControl "5400+30"]

{[%evp 9,53,0,16,8,8,8,10,8,18,22,13,6,100,100,94,89,156,143,154,153,154,143,191,205,240,137,279,279,306,306,405,403,403,412,407,407,1053,402,394,395,29995,-1612,29998,1412,29996,-1406]} 1. d4 {[%emt 0:00:09]} Nf6 {[%emt 0:00:36]} 2. Nc3 {[%emt 0:00:11]} d5 {[%emt 0:00:35]} 3. Bf4 {[%emt 0:00:12]} Bf5 {[%emt 0:02:28]} 4. e3 {[%emt 0:00:20]} e6 {[%emt 0:02:52]} 5. f3 {[%emt 0:02:17]} Nh5 {[%emt 0:10:39]} 6. Be5 {[%emt 0:14:10] D00: 1 d4 d5: Unusual lines.} (6. g4 {seems wilder.} Nxf4 7. gxf5 Qh4+ 8. Kd2) 6... f6 {[%emt 0:11:20]} 7. Bg3 {[%emt 0:00:31]} Nxg3 {[%emt 0:04:53]} 8. hxg3 {[%emt 0:00:07] [#] The position is equal.} Bd6 $146 {[%emt 0:08:35]} ({Predecessor:} 8... Nc6 9. a3 Qd6 10. f4 O-O-O 11. Qd2 e5 12. O-O-O exd4 13. exd4 Be4 14. Qf2 Bf5 {½-½ (77) Burkhardt,H (2033)-Moeller,J (1784) Verden 2019}) 9. g4 {[%emt 0:02:11]} Bg6 {[%emt 0:01:42]} 10. Bd3 {[%emt 0:00:14] And now Bxg6+ would win.} f5 {[%emt 0:09:43]} (10... Bf7 $11) 11. gxf5 $16 {[%emt 0:15:02]} exf5 {[%emt 0:07:13]} 12. Qd2 {[%emt 0:04:39]} Bg3+ {[%emt 0:02:36]} (12... Nc6 $142) 13. Kf1 {[%emt 0:01:21]} c6 {[%emt 0:01:55]} 14. f4 $1 {[%emt 0:00:54] Hoping for Nf3.} Bh4 {[%emt 0:01:19]} 15. Nf3 $36 {[%emt 0:00:10][%mdl 2048] White is on the roll. White is more active.} Be7 {[%emt 0:02:42]} (15... Bf6 $16 {might work better.} 16. g4 Qd7) 16. g4 $18 {[%emt 0:01:13][%cal Bg2g4,Bg4g5,Bg5g6][%mdl 32]} O-O {[%emt 0:10:46]} 17. Qh2 {[%emt 0:01:22]} (17. Ne5 $18) 17... h6 {[%emt 0:02:18]} (17... Nd7 $16) 18. Ne5 {[%emt 0:00:18]} Bh7 {[%emt 0:01:49]} 19. g5 {[%emt 0:01:37]} Kh8 {[%emt 0:01:22]} 20. Qh5 {[%emt 0:02:38]} ({Not} 20. gxh6 g6 21. Rg1 Qd6 $18) 20... Qe8 {[%emt 0:03:41]} 21. g6 {[%emt 0:00:48]} Bg8 {[%emt 0:00:14]} 22. Bxf5 {[%emt 0:00:23] Threatens to win with Ke2.} Bd6 {[%emt 0:01:39]} (22... Rf6 $142 23. Ng4 Qf8) 23. Ng4 {[%emt 0:00:43] Pair of Knights!} (23. Qg5 $142 {[%cal Oh1h6] Intending Rxh6+! and mate.} Qe7 24. Rxh6+ $1 {[%mdl 512]} gxh6 25. g7+ (25. Qxh6+ Bh7 $16) 25... Qxg7 26. Ng6+ Qxg6 27. Qxg6) 23... Rxf5 {[%emt 0:02:21]} 24. Qxf5 {[%emt 0:01:52][%cal Oh1h6] White wants to mate with Rxh6+!} Be6 $2 {[%emt 0:00:24] [#]} (24... Nd7 $18 25. Qg5 Bf8) 25. Rh3 $4 {[%emt 0:49:38][%mdl 8192]} h5 $4 {[%mdl 8192]} (25... Bxf5 $19 26. Rh4 Qe7) 26. Rxh5+ {[%emt 0:00:00]} Kg8 {[%emt 0:03:13] [#]} 27. Rh6 $4 {[%emt 0:00:00][%mdl 40960] White took control after the opening.  Weighted Error Value: White=0.64/Black=0.78. Loss on time!?} 1-0

[Event "Chhattisgarh Masters GM 2022"]
[Site "Chhattisgarh"]
[Date "2022.09.19"]
[Round "1.18"]
[White "Chidvilash Sai Surapaneni"]
[Black "Sourath Biswas"]
[Result "1-0"]
[ECO "A36"]
[WhiteElo "2000"]
[BlackElo "2302"]
[Annotator "TA"]
[PlyCount "101"]
[EventDate "2022.09.19"]
[EventCountry "IND"]
[SourceTitle "playchess.com"]
[Source "ChessBase"]
[SourceQuality "1"]
[TimeControl "5400+30"]

{[%evp 17,101,-12,0,3,15,0,27,18,35,8,11,7,0,0,22,8,38,35,57,-4,0,0,18,0,20,24,21,-6,7,0,64,56,106,95,200,167,227,223,364,362,376,381,384,387,364,362,358,348,345,338,362,345,343,333,383,380,357,368,406,418,785,573,546,561,555,548,602,589,594,572,539,529,497,472,451,415,850,835,29975,29975,29975,29976,29972,29973,29954,6079]} 1. c4 {[%emt 0:00:11]} g6 {[%emt 0:00:18]} 2. Nc3 {[%emt 0:00:07]} Bg7 {[%emt 0:00:06]} 3. g3 {[%emt 0:00:11]} c5 {[%emt 0:00:06]} 4. Bg2 {[%emt 0:00:21]} Nc6 {[%emt 0:00:08]} 5. e4 {[%emt 0:00:12]} a6 {[%emt 0:00:06]} 6. a4 {[%emt 0:00:07]} d6 {[%emt 0:00:36]} 7. d3 {[%emt 0:00:09]} e6 {[%emt 0:00:54]} 8. Nge2 {[%emt 0:00:10]} Nge7 {[%emt 0:00:06][%cal Bg8e7,Be7c6,Bc6e5,Be5g4,Bg4f6][%mdl 32]} 9. O-O {[%emt 0:00:22]} O-O {[%emt 0:00:07]} 10. Rb1 {[%emt 0:00:45] A36: Symmetrical English vs ...g6: 4 Bg2 Bg7.} Rb8 {[%emt 0:00:33] [#]} 11. Bd2 $146 {[%emt 0:15:22]} ({Predecessor:} 11. Be3 Qb6 12. Na2 Qa5 13. Bd2 Qc7 14. b4 b6 15. Qb3 Bb7 16. b5 axb5 17. axb5 {0-1 (66) Steingrimsson,H (2556)-Cheparinov,I (2664) Plovdiv 2012}) 11... Nd4 {[%emt 0:18:10]} 12. b4 {[%emt 0:16:29] White has an edge.} Nec6 {[%emt 0:00:22]} 13. b5 {[%emt 0:01:23]} axb5 {[%emt 0:00:06]} 14. axb5 {[%emt 0:06:16]} Ne5 {[%emt 0:00:05]} 15. Nc1 {[%emt 0:00:11]} f5 {[%emt 0:04:08]} 16. f4 {[%emt 0:01:17]} Ng4 {[%emt 0:00:28]} 17. h3 {[%emt 0:08:16]} Nf6 {[%emt 0:02:29]} 18. Kh2 {[%emt 0:10:22]} (18. exf5 $14 gxf5 19. N3e2) 18... b6 {[%emt 0:01:33]} 19. exf5 {[%emt 0:00:49]} gxf5 {[%emt 0:00:09]} 20. N1e2 {[%emt 0:05:32]} Bb7 {[%emt 0:02:17]} 21. Nxd4 {[%emt 0:01:57]} cxd4 {[%emt 0:00:06]} 22. Na2 {[%emt 0:00:40][%cal Bc3a2,Ba2b4,Bb4c6][%mdl 32]} Bxg2 {[%emt 0:05:58]} 23. Kxg2 {[%emt 0:00:02]} Ra8 {[%emt 0:00:10]} (23... d5 $11) 24. Nb4 $14 {[%emt 0:00:22]} Qc7 {[%emt 0:06:35] Black is on the road to losing.} ({Black should try} 24... Qd7 $14) 25. Qf3 {[%emt 0:02:43]} (25. Nc6 {is more complex.} d5 26. Bb4 dxc4 27. Bxf8 Bxf8 28. Ra1) 25... Qc8 {[%emt 0:26:46]} (25... d5 $16) 26. Ra1 {[%emt 0:02:21]} Kh8 {[%emt 0:13:16]} (26... e5 $142) 27. Qc6 $18 {[%emt 0:02:43]} Qxc6+ {[%emt 0:05:03]} (27... d5 $142) 28. Nxc6 {[%emt 0:00:13]} (28. bxc6 Kg8 29. Kf3 Ra5 30. Rxa5 bxa5 $18) 28... Rfe8 {[%emt 0:00:04]} 29. Bb4 {[%emt 0:00:44]} Rxa1 {[%emt 0:00:21]} 30. Rxa1 {[%emt 0:00:02]} e5 {[%emt 0:01:32]} 31. Bxd6 {[%emt 0:00:26]} e4 {[%emt 0:00:07]} 32. Be5 {[%emt 0:01:16]} ({Less strong is} 32. Nxd4 Nd7 $18) 32... exd3 {[%emt 0:00:53]} 33. Rd1 {[%emt 0:00:49]} ({Not} 33. Nxd4 Ne4 $16) 33... Ra8 {[%emt 0:01:20]} 34. Bxf6 {[%emt 0:03:41]} ({Don't do} 34. Nxd4 Ne4 $18) 34... Bxf6 {[%emt 0:00:06]} 35. Rxd3 {[%emt 0:00:03][%mdl 4096] Endgame KRB-KRN} Kg7 {[%emt 0:04:23]} 36. g4 {[%emt 0:06:01]} fxg4 {[%emt 0:00:14]} 37. hxg4 {[%emt 0:00:01][%cal Bh3g4,Bg4g5][%mdl 32]} Kg6 {[%emt 0:01:54]} 38. Kf3 {[%emt 0:00:43]} Ra4 {[%emt 0:00:13]} (38... Re8 $142 39. g5 Bg7 40. Nxd4 Re1) 39. g5 {[%emt 0:02:28]} Bg7 {[%emt 0:00:10]} 40. Ne7+ {[%emt 0:00:22]} Kf7 {[%emt 0:00:06]} 41. Nf5 {[%emt 0:00:03]} Bf8 {[%emt 0:01:14]} 42. Rxd4 {[%emt 0:00:16]} Ke6 {[%emt 0:00:19]} 43. Kg4 {[%emt 0:00:38]} Ra1 {[%emt 0:01:07]} 44. Re4+ {[%emt 0:00:07]} Kf7 {[%emt 0:00:05]} 45. Ne3 {[%emt 0:00:08]} h6 {[%emt 0:01:55]} 46. gxh6 {[%emt 0:00:21]} Rg1+ {[%emt 0:00:05]} (46... Rh1 $142 47. Nd5 Rxh6) 47. Kf5 {[%emt 0:00:29]} Rg6 {[%emt 0:01:06]} 48. Ng4 {[%emt 0:00:06] White mates.} Rd6 {[%emt 0:00:45]} 49. h7 {[%emt 0:00:08]} Bg7 {[%emt 0:00:05]} 50. Re2 {[%emt 0:01:19]} Rd8 {[%emt 0:00:27]} 51. Ra2 {[%emt 0:00:10] Weighted Error Value: White=0.13 (very precise) /Black=0.39} 1-0

[Event "Chhattisgarh Masters GM 2022"]
[Site "Chhattisgarh"]
[Date "2022.09.19"]
[Round "1.19"]
[White "Arpita, Mukherjee"]
[Black "Kavinda, Akila"]
[Result "0-1"]
[ECO "B06"]
[WhiteElo "2293"]
[BlackElo "1997"]
[Annotator "NA RC"]
[PlyCount "118"]
[EventDate "2022.09.19"]
[EventCountry "IND"]
[SourceTitle "playchess.com"]
[Source "ChessBase"]
[SourceQuality "1"]
[TimeControl "5400+30"]

1. e4 {[%emt 0:00:13]} g6 {[%emt 0:00:05]} 2. d4 {[%emt 0:00:14]} Bg7 {[%emt 0:00:06]} 3. Nc3 {[%emt 0:00:13]} d6 {[%emt 0:00:06]} 4. Be3 {[%emt 0:00:16]} a6 {[%emt 0:00:11]} 5. Qd2 {[%emt 0:00:41]} b5 {[%emt 0:00:06]} 6. Bd3 {[%emt 0:00:11]} Nd7 {[%emt 0:01:14]} 7. Nf3 {[%emt 0:01:29]} c5 {[%emt 0:00:51]} 8. a4 {[%emt 0:03:18]} b4 {[%emt 0:01:40]} 9. Ne2 {[%emt 0:00:58]} Bb7 {[%emt 0:05:56]} 10. c3 {[%emt 0:09:06]} bxc3 {[%emt 0:00:49]} 11. bxc3 {[%emt 0:00:16]} Ngf6 {[%emt 0:10:25]} 12. Ng3 {[%emt 0:02:30]} Ng4 {[%emt 0:11:12]} 13. Bf4 {[%emt 0:07:43]} cxd4 {[%emt 0:19:46]} 14. cxd4 {[%emt 0:00:57]} e5 {[%emt 0:00:45]} 15. Bg5 {[%emt 0:01:55]} f6 {[%emt 0:03:00]} 16. Bh4 {[%emt 0:04:05]} exd4 {[%emt 0:08:56]} 17. Nxd4 {[%emt 0:05:23]} Nc5 {[%emt 0:12:16]} 18. O-O {[%emt 0:04:04]} Ne5 {[%emt 0:09:40]} 19. Bc2 {[%emt 0:01:39]} O-O {[%emt 0:00:54]} 20. Rab1 {[%emt 0:12:28]} Qd7 {[%emt 0:12:32]} 21. f4 {[%emt 0:10:13]} Nf7 {[%emt 0:00:00]} 22. Nb3 {[%emt 0:10:52]} Rac8 {[%emt 0:00:00]} 23. Nxc5 {[%emt 0:09:26]} Rxc5 {[%emt 0:00:00]} 24. Bb3 {[%emt 0:06:05]} Bc6 {[%emt 0:00:00]} 25. Bxf7+ {[%emt 0:07:15]} Rxf7 {[%emt 0:00:00]} 26. Rb8+ {[%emt 0:00:21]} Bf8 {[%emt 0:00:00]} 27. Qd4 {[%emt 0:01:16]} Qa7 {[%emt 0:01:49]} 28. Rbb1 {[%emt 0:00:47]} Bxa4 {[%emt 0:01:36]} 29. Ne2 {[%emt 0:00:33]} Bb5 {[%emt 0:00:21]} 30. Rbe1 {[%emt 0:00:23]} Rc4 {[%emt 0:00:36]} 31. Qxa7 {[%emt 0:00:14]} Rxa7 {[%emt 0:00:04]} 32. Bxf6 {[%emt 0:00:49]} Rxe4 {[%emt 0:00:45]} 33. Nd4 {[%emt 0:00:31]} Rxe1 {[%emt 0:00:31]} 34. Rxe1 {[%emt 0:00:02]} Bd7 {[%emt 0:00:43]} 35. Bd8 {[%emt 0:01:01]} a5 {[%emt 0:00:28]} 36. Bb6 {[%emt 0:00:31]} Ra6 {[%emt 0:00:13]} 37. Bc7 {[%emt 0:00:29]} a4 {[%emt 0:00:19]} 38. Re2 {[%emt 0:00:24]} Bg7 {[%emt 0:00:51]} 39. Nc2 {[%emt 0:00:24]} a3 {[%emt 0:00:40]} 40. Nb4 {[%emt 0:00:07]} Ra4 {[%emt 0:00:30]} 41. Bxd6 {[%emt 0:00:15]} Bd4+ {[%emt 0:00:30]} 42. Kh1 {[%emt 0:00:21]} Bb2 {[%emt 0:00:00]} 43. Na2 {[%emt 0:00:00]} Rd4 {[%emt 0:00:00]} 44. Bb4 {[%emt 0:00:00]} Rd1+ {[%emt 0:00:00]} 45. Re1 {[%emt 0:00:00]} Rxe1+ {[%emt 0:00:00]} 46. Bxe1 {[%emt 0:00:00]} Be6 {[%emt 0:00:00]} 47. Nb4 {[%emt 0:00:00]} a2 {[%emt 0:00:00]} 48. Nxa2 {[%emt 0:00:00]} Bxa2 {[%emt 0:00:00]} 49. h3 {[%emt 0:00:00]} Bc1 {[%emt 0:00:00]} 50. g3 {[%emt 0:00:00]} Bd5+ {[%emt 0:00:00]} 51. Kh2 {[%emt 0:00:00]} Be3 {[%emt 0:00:00]} 52. Bc3 {[%emt 0:00:00]} Bf3 {[%emt 0:00:00]} 53. Bf6 {[%emt 0:00:00]} Kf7 {[%emt 0:00:00]} 54. Bg5 {[%emt 0:00:00]} Bf2 {[%emt 0:00:00]} 55. g4 {[%emt 0:00:00]} Ke6 {[%emt 0:00:00]} 56. Bd8 {[%emt 0:00:00]} h5 {[%emt 0:00:00]} 57. gxh5 {[%emt 0:00:00]} gxh5 {[%emt 0:01:14]} 58. h4 {[%emt 0:00:00]} Kf5 {[%emt 0:00:41]} 59. Bg5 {[%emt 0:00:00]} Kg4 {[%emt 0:00:25]} 0-1

[Event "Chhattisgarh Masters GM 2022"]
[Site "Chhattisgarh"]
[Date "2022.09.19"]
[Round "1.20"]
[White "Nagare Kaivalya Sandip"]
[Black "Ram Aravind L N"]
[Result "1-0"]
[ECO "B42"]
[WhiteElo "1996"]
[BlackElo "2275"]
[Annotator "NA RC"]
[PlyCount "95"]
[EventDate "2022.09.19"]
[EventCountry "IND"]
[SourceTitle "playchess.com"]
[Source "ChessBase"]
[SourceQuality "1"]
[TimeControl "5400+30"]

1. e4 {[%emt 0:00:15]} c5 {[%emt 0:00:17]} 2. Nf3 {[%emt 0:00:25]} e6 {[%emt 0:00:05]} 3. d4 {[%emt 0:00:09]} cxd4 {[%emt 0:00:05]} 4. Nxd4 {[%emt 0:00:09]} a6 {[%emt 0:00:04]} 5. Bd3 {[%emt 0:00:12]} Qc7 {[%emt 0:00:07]} 6. O-O {[%emt 0:00:06]} Nf6 {[%emt 0:00:29]} 7. Qe2 {[%emt 0:00:28]} d6 {[%emt 0:00:28]} 8. c4 {[%emt 0:00:44]} Be7 {[%emt 0:00:55]} 9. Nc3 {[%emt 0:00:12]} b6 {[%emt 0:02:07]} 10. f4 {[%emt 0:00:58]} Bb7 {[%emt 0:02:22]} 11. f5 {[%emt 1:32:22]} Nc6 {[%emt 0:04:56]} 12. Be3 {[%emt 0:00:00]} Nxd4 {[%emt 0:06:18]} 13. Bxd4 {[%emt 0:00:00]} e5 {[%emt 0:00:21]} 14. Be3 {[%emt 0:00:00]} h5 {[%emt 0:02:09]} 15. Nd5 {[%emt 0:00:00]} Nxd5 {[%emt 0:26:10]} 16. cxd5 {[%emt 0:00:00]} Bd8 {[%emt 0:02:02]} 17. a4 {[%emt 0:00:00]} Bc8 {[%emt 0:06:19]} 18. b4 {[%emt 0:00:00]} Qb7 {[%emt 0:03:23]} 19. b5 {[%emt 0:00:00]} a5 {[%emt 0:00:43]} 20. Qd2 {[%emt 0:00:00]} Bf6 {[%emt 0:01:11]} 21. Rac1 {[%emt 0:00:00]} Bd7 {[%emt 0:01:13]} 22. Qf2 {[%emt 0:00:00]} Rb8 {[%emt 0:09:08]} 23. g3 {[%emt 0:00:00]} Ke7 {[%emt 0:03:43]} 24. h3 {[%emt 0:00:00]} Rhg8 {[%emt 0:05:55]} 25. Kh2 {[%emt 0:00:00]} Rgf8 {[%emt 0:03:28]} 26. g4 {[%emt 0:00:00]} hxg4 {[%emt 0:00:24]} 27. hxg4 {[%emt 0:00:00]} Rh8+ {[%emt 0:00:52]} 28. Kg2 {[%emt 0:00:00]} Bh4 {[%emt 0:00:07]} 29. Qd2 {[%emt 0:00:00]} f6 {[%emt 0:00:39]} 30. Rc6 {[%emt 0:00:00]} Qa7 {[%emt 0:08:41]} 31. Rfc1 {[%emt 0:00:00]} g6 {[%emt 0:03:35]} 32. Rc7 {[%emt 0:00:00]} Rb7 {[%emt 0:02:01]} 33. Qc2 {[%emt 0:00:00]} gxf5 {[%emt 0:01:18]} 34. exf5 {[%emt 0:00:00]} Qa8 {[%emt 0:03:12]} 35. Qc6 {[%emt 0:00:00]} Rxc7 {[%emt 0:00:58]} 36. Qxa8 {[%emt 0:00:00]} Rxa8 {[%emt 0:00:06]} 37. Rxc7 {[%emt 0:00:00]} Rg8 {[%emt 0:01:25]} 38. Kf3 {[%emt 0:00:00]} Rb8 {[%emt 0:00:09]} 39. Be4 {[%emt 0:00:00]} Bg5 {[%emt 0:01:53]} 40. Bxg5 {[%emt 0:00:00]} fxg5 {[%emt 0:00:01]} 41. f6+ {[%emt 0:00:00]} Kd8 {[%emt 0:00:07]} 42. Rc1 {[%emt 0:00:00]} Rb7 {[%emt 0:00:00]} 43. Bg6 {[%emt 0:00:00]} e4+ {[%emt 0:00:00]} 44. Bxe4 {[%emt 0:00:00]} Be8 {[%emt 0:00:00]} 45. Bf5 {[%emt 0:00:00]} Bd7 {[%emt 0:00:00]} 46. Rh1 {[%emt 0:00:00]} Be8 {[%emt 0:00:00]} 47. Be6 {[%emt 0:00:00]} Rc7 {[%emt 0:00:00]} 48. Rh8 {[%emt 0:00:00]} 1-0

[Event "Chhattisgarh Masters GM 2022"]
[Site "Chhattisgarh"]
[Date "2022.09.19"]
[Round "1.21"]
[White "Ilamparthi A R"]
[Black "Ankitha Goud Palle"]
[Result "1-0"]
[ECO "A24"]
[WhiteElo "2269"]
[BlackElo "1990"]
[Annotator "NA RC"]
[PlyCount "81"]
[EventDate "2022.09.19"]
[EventCountry "IND"]
[SourceTitle "playchess.com"]
[Source "ChessBase"]
[SourceQuality "1"]
[TimeControl "5400+30"]

1. Nf3 {[%emt 0:00:02]} Nf6 {[%emt 0:00:33]} 2. g3 {[%emt 0:00:06]} g6 {[%emt 0:01:00]} 3. Bg2 {[%emt 0:00:19]} Bg7 {[%emt 0:00:08]} 4. O-O {[%emt 0:00:05]} d6 {[%emt 0:00:55]} 5. c4 {[%emt 0:00:07]} O-O {[%emt 0:01:43]} 6. Nc3 {[%emt 0:00:06]} Nbd7 {[%emt 0:00:17]} 7. d3 {[%emt 0:00:49]} c6 {[%emt 0:01:42]} 8. Rb1 {[%emt 0:00:10]} a5 {[%emt 0:05:04]} 9. a3 {[%emt 0:00:10]} e5 {[%emt 0:05:52]} 10. b4 {[%emt 0:00:11]} axb4 {[%emt 0:00:58]} 11. axb4 {[%emt 0:00:02]} Re8 {[%emt 0:03:41]} 12. Nd2 {[%emt 0:00:54]} Nf8 {[%emt 0:02:47]} 13. b5 {[%emt 0:00:59]} d5 {[%emt 0:05:45]} 14. bxc6 {[%emt 0:06:06]} bxc6 {[%emt 0:00:54]} 15. Qb3 {[%emt 0:06:44]} Be6 {[%emt 0:07:24]} 16. Bb2 {[%emt 0:06:23]} N8d7 {[%emt 0:07:44]} 17. Rfc1 {[%emt 0:04:47]} Nc5 {[%emt 0:06:41]} 18. Qd1 {[%emt 0:03:08]} Bf8 {[%emt 0:04:31]} 19. cxd5 {[%emt 0:01:24]} cxd5 {[%emt 0:09:03]} 20. Nf3 {[%emt 0:02:36]} d4 {[%emt 0:11:38]} 21. Nb5 {[%emt 0:01:01]} Bb3 {[%emt 0:03:07]} 22. Qe1 {[%emt 0:06:19]} Rb8 {[%emt 0:04:44]} 23. Na7 {[%emt 0:24:36]} Qc7 {[%emt 0:07:39]} 24. Nxe5 {[%emt 0:05:08]} Qxe5 {[%emt 0:04:55]} 25. Nc6 {[%emt 0:00:11]} Qd6 {[%emt 0:01:06]} 26. Ba3 {[%emt 0:02:03]} Nfd7 {[%emt 0:02:20]} 27. Nxb8 {[%emt 0:01:23]} Rxb8 {[%emt 0:00:17]} 28. h4 {[%emt 0:08:51]} Re8 {[%emt 0:01:26]} 29. Rxb3 {[%emt 0:00:23]} Qa6 {[%emt 0:00:17]} 30. Bxc5 {[%emt 0:00:52]} Nxc5 {[%emt 0:00:07]} 31. Ra1 {[%emt 0:02:42]} Rxe2 {[%emt 0:00:47]} 32. Qf1 {[%emt 0:01:18]} Qe6 {[%emt 0:00:30]} 33. Rb8 {[%emt 0:00:35]} Nxd3 {[%emt 0:00:45]} 34. Bd5 {[%emt 0:04:50]} Qe5 {[%emt 0:00:13]} 35. Raa8 {[%emt 0:00:41]} Re1 {[%emt 0:00:50]} 36. Rxf8+ {[%emt 0:00:05]} Kg7 {[%emt 0:00:03]} 37. Rxf7+ {[%emt 0:00:07]} Kh6 {[%emt 0:00:13]} 38. Raa7 {[%emt 0:00:08]} g5 {[%emt 0:00:00]} 39. Ra6+ {[%emt 0:00:00]} Kh5 {[%emt 0:00:00]} 40. Bf3+ {[%emt 0:00:00]} g4 {[%emt 0:00:00]} 41. Rxh7# {[%emt 0:00:00]} 1-0